{"text_format":"1","workbook":"xlsx","n_sheets":1,"sheets":["Accounts Payable Template"],"not_rendered":{"charts":0,"images":2,"macros":0,"external_links":0,"defined_names":1,"comments":0,"pivot_tables":0},"unopened":[],"bounds":{"document_bytes":16777216,"sheet_cells":100000,"rows_first":2000,"rows_last":500,"rows_between":2000,"halvings":0,"cell_chars":16384,"cell_head_chars":4096},"cells_cut":0,"cells_raw":0,"read":"whole","date_system":"1900"}

{"sheet":"Accounts Payable Template","index":0,"n_rows":134,"n_cols":19,"rows_kept":134,"cut":false,"hidden":false,"merged":[[25,2,25,17],[1,10,1,18],[1,2,1,4]]}
[null,"ACCOUNTS PAYABLE TEMPLATE"]
[null,"COMPANY",null,null,null,"TOTAL DUE",{"$f":"SUM(G5:G24)","v":0},"CURRENT DATE",{"$f":"TODAY()","v":"2017-05-09"},"ADDITIONAL INFO"]
[]
[null,"DATE","INVOICE NUMBER","SUPPLIER NAME","TOTAL AMOUNT","DATE DUE","BALANCE DUE","PAYMENT 1","PAYMENT 2","PAYMENT 3","PAYMENT 4","PAYMENT 5","PAYMENT 6","PAYMENT 7","PAYMENT 8","PAYMENT 9","PAYMENT 10","PAYMENT 11","PAYMENT 12"]
[null,null,null,null,null,null,{"$f":"E5-SUM(H5:S5)","v":0}]
[null,null,null,null,null,null,{"$f":"E6-SUM(H6:S6)","v":0}]
[null,null,null,null,null,null,{"$f":"E7-SUM(H7:S7)","v":0}]
[null,null,null,null,null,null,{"$f":"E8-SUM(H8:S8)","v":0}]
[null,null,null,null,null,null,0]
[null,null,null,null,null,null,0]
[null,null,null,null,null,null,0]
[null,null,null,null,null,null,0]
[null,null,null,null,null,null,0]
[null,null,null,null,null,null,0]
[null,null,null,null,null,null,0]
[null,null,null,null,null,null,0]
[null,null,null,null,null,null,0]
[null,null,null,null,null,null,0]
[null,null,null,null,null,null,0]
[null,null,null,null,null,null,0]
[null,null,null,null,null,null,0]
[null,null,null,null,null,null,0]
[null,null,null,null,null,null,0]
[null,null,null,null,null,null,0]
[]
[null,null,"CLICK HERE TO CREATE ACCOUNTS PAYABLE TEMPLATES IN SMARTSHEET"]
[]
[]
[]
[]
[]
[]
[]
[]
[]
[]
[]
[]
[]
[]
[]
[]
[]
[]
[]
[]
[]
[]
[]
[]
[]
[]
[]
[]
[]
[]
[]
[]
[]
[]
[]
[]
[]
[]
[]
[]
[]
[]
[]
[]
[]
[]
[]
[]
[]
[]
[]
[]
[]
[]
[]
[]
[]
[]
[]
[]
[]
[]
[]
[]
[]
[]
[]
[]
[]
[]
[]
[]
[]
[]
[]
[]
[]
[]
[]
[]
[]
[]
[]
[]
[]
[]
[]
[]
[]
[]
[]
[]
[]
[]
[]
[]
[]
[]
[]
[]
[]
[]
[]
[]
[]
[]
[]
[null,null,null," "]